fUST/lending_fUST_20250428
["ID","MTS","AMOUNT","RATE_DAILY","PERIOD"]
[359178219,1745776240671,-500.0,0.00016711,2]
[359178220,1745776240680,-500.70918951,0.00016711,2]
[359178221,1745776240690,-500.0,0.00016711,2]
[359178222,1745776240699,-197.2250173,0.00016711,2]
[359178223,1745776240711,-202.7749827,0.00016711,2]
[359178224,1745776240722,-500.0,0.00016711,2]
[359178225,1745776240733,-500.0,0.00016711,2]
[359178226,1745776240743,-500.0,0.00016711,2]
[359178227,1745776240752,-174.05849249,0.00016711,2]
[359178228,1745776240763,-325.94150751,0.00016711,2]
[359178229,1745776240773,-500.0,0.00016711,2]
[359178230,1745776240782,-500.0,0.00016711,2]
[359178231,1745776240792,-500.0,0.00016711,2]
[359178232,1745776240801,-2595.98,0.00016711,2]
[359178233,1745776240810,-280.01529219,0.00016711,2]
[359178249,1745776243184,-219.98470781,0.00016711,2]
[359178250,1745776243194,-230.52911495,0.00016711,2]
[359178251,1745776243206,-169.47088505,0.00016711,2]
[359178252,1745776243215,-84.27101228,0.00016711,2]
[359178253,1745776243226,-415.72898772,0.00016711,2]
[359178254,1745776243235,-88.95250174,0.00016711,2]
[359178255,1745776243247,-311.04749826,0.00016711,2]
[359178256,1745776243257,-423.76139041,0.00016711,2]
[359178257,1745776243266,-500.0,0.00016711,2]
[359178258,1745776243275,-500.0,0.00016711,2]
[359178259,1745776243284,-500.0,0.00016711,2]
[359178260,1745776243293,-500.0,0.00016711,2]
[359178261,1745776243303,-400.0,0.00016985,2]
[359178262,1745776243312,-400.0,0.00016985,2]
[359178263,1745776243322,-400.0,0.00016985,2]
[359178264,1745776243331,-570.92,0.00016985,2]
[359178265,1745776243341,-443.75,0.00016985,2]
[359178266,1745776243350,-2595.98,0.00016985,2]
[359178267,1745776243360,-281.62774334,0.00017096,2]
[359178270,1745776243369,-400.0,0.00017096,2]
[359178271,1745776243379,-400.0,0.00017096,2]
[359178272,1745776243388,-400.0,0.00017096,2]
[359178273,1745776243398,-400.0,0.00017096,2]
[359178274,1745776243407,-400.0,0.00017096,2]
[359178275,1745776243416,-400.0,0.00017096,2]
[359178276,1745776243426,-346.06033843,0.00017096,2]
[359178277,1745776243436,-200.0,0.00017096,2]
[359178278,1745776243445,-500.0,0.00017259,2]
[359178279,1745776243457,-500.0,0.00017259,2]
[359178280,1745776243467,-500.0,0.00017259,2]
[359178281,1745776243476,-400.0,0.00017259,2]
[359178282,1745776243486,-400.0,0.00017259,2]
[359178283,1745776243496,-400.0,0.00017259,2]
[359178284,1745776243505,-570.92,0.00017259,2]
[359178285,1745776243514,-2595.98,0.00017259,2]
[359178286,1745776243524,-276.1264042,0.00017346,2]
[359178287,1745776243533,-500.0,0.00017365,2]
[359178288,1745776243543,-200.0,0.0001737,2]
[359178289,1745776243552,-200.0,0.0001737,2]
[359178290,1745776243562,-200.0,0.0001737,2]
[359178291,1745776243570,-200.0,0.0001737,2]
[359178292,1745776243741,-200.0,0.0001737,2]
[359178293,1745776243751,-400.0,0.0001737,2]
[359178294,1745776243760,-463.2051952,0.00017386,2]
[359178295,1745776243769,-400.0,0.00017533,2]
[359178296,1745776243778,-390.96,0.00017533,2]
[359178297,1745776243787,-400.0,0.00017533,2]
[359178298,1745776243796,-570.92,0.00017533,2]
[359178299,1745776243806,-2595.98,0.00017533,2]
[359178300,1745776243815,-421.1409203,0.00017613,2]
[359178301,1745776243824,-840.47993636,0.00017613,2]
[359178302,1745776243834,-160.0,0.00017613,2]
[359178303,1745776243844,-160.0,0.00017613,2]
[359178304,1745776243856,-200.0,0.00017644,2]
[359178305,1745776243865,-499.71659445,0.00017673,2]
[359178307,1745776243875,-500.0,0.00017673,2]
[359178308,1745776243884,-500.0,0.00017673,2]
[359178309,1745776243895,-12529.98048116,0.0001768,2]
[359178310,1745776243988,-1483.3166649,0.0001768,2]
[359178311,1745776244000,-488.23315265,0.0001768,2]
[359178316,1745776246269,-1054.54,0.0001768,2]
[359178329,1745776727293,-300.0,0.00016609,2]
[359178330,1745776727318,-321.25334887,0.0001661,2]
[359178331,1745776727342,-1000.0,0.0001661,2]
[359178332,1745776727367,-2614.18736242,0.0001661,2]
[359178333,1745776727392,-239.33735911,0.0001671,2]
[359178334,1745776727624,-459.80347819,0.0001671,2]
[359178335,1745776727649,-261.15286719,0.0001671,2]
[359178336,1745776727672,-300.0,0.0001671,2]
[359178337,1745776727695,-300.0,0.0001671,2]
[359178338,1745776727718,-6663.46441406,0.00016711,2]
[359178339,1745776727741,-500.0,0.00016711,2]
[359178340,1745776727763,-500.0,0.00016711,2]
[359178341,1745776727787,-457.87535564,0.00016711,2]
[359178342,1745776727809,-500.63469283,0.00016711,2]
[359178343,1745776727833,-500.0,0.00016711,2]
[359178344,1745776727857,-500.0,0.00016711,2]
[359178345,1745776727880,-500.0,0.00016711,2]
[359178346,1745776727904,-500.0,0.00016711,2]
[359178347,1745776727927,-500.0,0.00016711,2]
[359178348,1745776727949,-500.0,0.00016711,2]
[359178349,1745776727973,-500.0,0.00016711,2]
[359178350,1745776727995,-500.0,0.00016711,2]
[359178351,1745776728019,-500.0,0.00016711,2]
[359178352,1745776728041,-500.0,0.00016711,2]
[359178353,1745776728065,-503.38616043,0.00016711,2]
[359178354,1745776728088,-400.0,0.00016711,2]
[359178355,1745776728111,-400.0,0.00016711,2]
[359178356,1745776728135,-158.5,0.00016711,2]
[359178357,1745776728165,-400.0,0.00016711,2]
[359178358,1745776728189,-500.0,0.00016711,2]
[359178359,1745776728214,-516.77279456,0.00016711,2]
[359178360,1745776728238,-283.56348605,0.00016711,2]
[359178361,1745776728261,-500.0,0.00016711,2]
[359178362,1745776728285,-500.0,0.00016711,2]
[359178363,1745776728309,-500.0,0.00016711,2]
[359178364,1745776728334,-475.76,0.00016711,2]
[359178365,1745776728359,-500.0,0.00016711,2]
[359178366,1745776728383,-500.0,0.00016711,2]
[359178367,1745776728407,-500.0,0.00016711,2]
[359178368,1745776728430,-500.0,0.00016711,2]
[359178369,1745776728455,-500.0,0.00016711,2]
[359178370,1745776728479,-400.0,0.00016985,2]
[359178371,1745776728504,-400.0,0.00016985,2]
[359178372,1745776728532,-475.76,0.00016985,2]
[359178373,1745776728557,-400.0,0.00017259,2]
[359178374,1745776728583,-302.11887443,0.00017259,2]
[359178375,1745776728608,-475.76,0.00017259,2]
[359178376,1745776728631,-276.12640421,0.00017352,2]
[359178377,1745776728655,-500.0,0.00017396,2]
[359178378,1745776728678,-500.0,0.0001742,2]
[359178379,1745776728702,-500.0,0.0001742,2]
[359178380,1745776728726,-400.0,0.00017533,2]
[359178381,1745776728751,-475.76,0.00017533,2]
[359178382,1745776728776,-160.0,0.00017613,2]
[359178383,1745776728800,-160.0,0.00017613,2]
[359178384,1745776728824,-840.47993636,0.00017613,2]
[359178385,1745776728847,-160.0,0.00017613,2]
[359178386,1745776728870,-421.1409203,0.00017613,2]
[359178387,1745776728894,-211.66783393,0.00017677,2]
[359178388,1745776728918,-636.32350755,0.00017677,2]
[359178389,1745776728941,-336.99817989,0.00017677,2]
[359178390,1745776728964,-335.62762918,0.00017677,2]
[359178391,1745776728992,-500.0,0.00017677,2]
[359178392,1745776729017,-1105.60541792,0.00017678,2]
[359178393,1745776729042,-1218.23159409,0.00017678,2]
[359178394,1745776729069,-33145.72810082,0.00017678,2]
[359178395,1745776729096,-1206.17306148,0.00017778,2]
[359178396,1745776729122,-720.2567245,0.00017778,3]
[359178397,1745776729147,-6680.55049599,0.00017778,2]
[359178449,1745777432209,-260.810026,0.00016526,2]
[359178451,1745777432219,-1000.0,0.00016611,2]
[359178453,1745777432228,-500.0,0.00016711,2]
[359178455,1745777432238,-500.0,0.00016711,2]
[359178457,1745777432248,-2163.32,0.00016711,2]
[359178458,1745777432257,-400.0,0.00016711,2]
[359178460,1745777432267,-500.0,0.00016711,2]
[359178462,1745777432276,-500.0,0.00016711,2]
[359178464,1745777432286,-500.0,0.00016711,2]
[359178466,1745777432296,-441.28744817,0.00016711,2]
[359178468,1745777432306,-500.0,0.00016711,2]
[359178470,1745777432315,-225.36507192,0.00016711,2]
[359178472,1745777432325,-500.0,0.00016711,2]
[359178475,1745777432334,-500.0,0.00016711,2]
[359178478,1745777432343,-500.0,0.00016711,2]
[359178481,1745777432353,-500.0,0.00016711,2]
[359178484,1745777432362,-500.0,0.00016711,2]
[359178487,1745777432371,-500.0,0.00016711,2]
[359178490,1745777432380,-500.0,0.00016711,2]
[359178493,1745777432390,-500.0,0.00016711,2]
[359178495,1745777432399,-500.0,0.00016711,2]
[359178497,1745777432408,-500.0,0.00016711,2]
[359178499,1745777432417,-195.29708264,0.00016711,2]
[359178547,1745777438318,-304.70291736,0.00016711,2]
[359178549,1745777438328,-500.0,0.00016711,2]
[359178551,1745777438338,-400.0,0.00016711,2]
[359178552,1745777438347,-400.0,0.00016711,2]
[359178553,1745777438356,-500.0,0.00016711,2]
[359178554,1745777438365,-2163.32,0.00016985,2]
[359178555,1745777438374,-400.0,0.00016985,2]
[359178556,1745777438383,-75.94957967,0.00016985,2]
[359178557,1745777438476,-440.02042033,0.00016985,2]
[359178558,1745777438486,-200.0,0.00016985,2]
[359178559,1745777438495,-2163.32,0.00017259,2]
[359178561,1745777438504,-400.0,0.00017259,2]
[359178563,1745777438513,-2163.32,0.00017533,2]
[359178564,1745777438522,-400.0,0.00017533,2]
[359178565,1745777438531,-840.47993636,0.00017634,2]
[359178566,1745777438543,-160.0,0.00017634,2]
[359178567,1745777438552,-1065.95264482,0.00017676,2]
[359178569,1745777438562,-376.6687389,0.00017677,2]
[359178571,1745777438571,-500.0,0.00017677,2]
[359178573,1745777438580,-400.0,0.00017677,2]
[359178575,1745777438591,-445.42645529,0.00017677,2]
[359178577,1745777438600,-235.89872592,0.00017677,2]
[359178579,1745777438609,-498.16748375,0.00017677,2]
[359178581,1745777438620,-234.93934042,0.00017677,2]
[359178583,1745777438630,-161.7985187,0.00017677,2]
[359178585,1745777438640,-884.48433436,0.00017678,2]
[359178587,1745777438649,-1137.12574006,0.00017678,2]
[359179041,1745777443491,-4014.99397607,0.00017678,2]
[359179043,1745777443504,-587.8,0.00017678,2]
[359179315,1745777446278,-379.16187942,0.00017678,2]
[359179327,1745777446385,-928.08091505,0.00017678,2]
[359179329,1745777446397,-865.0,0.00017678,2]
[359179332,1745777446409,-5712.33322195,0.00017678,2]
[359179353,1745777446597,-23366.60733297,0.00017678,2]
[359179355,1745777446607,-160.0,0.00017776,2]
[359179357,1745777446616,-421.1409203,0.00017776,2]
[359179359,1745777446625,-160.0,0.00017776,2]
[359179361,1745777446635,-42802.85654317,0.00017778,2]
[359179363,1745777446644,-160.4207588,0.00017778,2]
[359179365,1745777446654,-319.0,0.00017778,2]
[359179367,1745777446663,-319.0,0.00017778,2]
[359179369,1745777446672,-319.0,0.00017778,2]
[359179371,1745777446681,-319.0,0.00017778,2]
[359179373,1745777446691,-319.0,0.00017778,2]
[359179375,1745777446700,-319.0,0.00017778,2]
[359179377,1745777446709,-319.0,0.00017778,2]
[359179379,1745777446719,-319.0,0.00017778,2]
[359179381,1745777446728,-319.0,0.00017778,2]
[359179383,1745777446737,-319.0,0.00017778,2]
[359179385,1745777446747,-370.19998625,0.00017778,2]
[359179387,1745777446756,-319.0,0.00017778,2]
[359179389,1745777446766,-359.0,0.00017778,2]
[359179391,1745777446775,-282.01915398,0.00017778,2]
[359179393,1745777446786,-359.0,0.00017778,2]
[359179395,1745777446795,-359.0,0.00017778,2]
[359179397,1745777446806,-359.0,0.00017778,2]
[359179399,1745777446815,-359.0,0.00017778,2]
[359179401,1745777446825,-359.0,0.00017778,2]
[359179403,1745777446834,-359.0,0.00017778,2]
[359179405,1745777446845,-359.0,0.00017778,2]
[359179407,1745777446854,-359.0,0.00017778,2]
[359179409,1745777446864,-359.0,0.00017778,2]
[359179411,1745777446873,-359.0,0.00017778,2]
[359179413,1745777446882,-359.0,0.00017778,2]
[359179415,1745777446892,-359.0,0.00017778,2]
[359179417,1745777446901,-421.93298057,0.00017778,2]
[359179419,1745777446911,-359.0,0.00017778,2]
[359179421,1745777446920,-359.0,0.00017778,2]
[359179423,1745777446929,-359.0,0.00017778,2]
[359179425,1745777446939,-359.0,0.00017778,2]
[359179427,1745777446948,-359.0,0.00017778,2]
[359179429,1745777446957,-359.0,0.00017778,2]
[359179431,1745777446966,-359.0,0.00017778,2]
[359179433,1745777446975,-359.0,0.00017778,2]
[359179435,1745777446986,-359.0,0.00017778,2]
[359179437,1745777446995,-359.0,0.00017778,2]
[359179439,1745777447005,-359.0,0.00017778,2]
[359179441,1745777447014,-359.0,0.00017778,2]
[359179443,1745777447024,-359.0,0.00017778,2]
[359179445,1745777447033,-359.0,0.00017778,2]
[359179447,1745777447043,-359.0,0.00017778,2]
[359179449,1745777447053,-359.0,0.00017778,2]
[359179451,1745777447062,-359.0,0.00017778,2]
[359179453,1745777447071,-359.0,0.00017778,2]
[359179455,1745777447081,-359.0,0.00017778,2]
[359179457,1745777447090,-359.0,0.00017778,2]
[359179459,1745777447100,-202.38840451,0.00017778,2]
[359179461,1745777447109,-210.58998496,0.00017778,2]
[359179463,1745777447122,-166.0,0.00017778,2]
[359179465,1745777447131,-166.0,0.00017778,2]
[359179467,1745777447140,-162.89753949,0.00017778,2]
[359179469,1745777447150,-161.01797495,0.00017778,2]
[359179471,1745777447159,-159.0,0.00017778,2]
[359179473,1745777447169,-159.0,0.00017778,2]
[359179475,1745777447178,-159.0,0.00017778,2]
[359179477,1745777447188,-319.0,0.00017778,2]
[359179479,1745777447197,-319.0,0.00017778,2]
[359179481,1745777447207,-319.0,0.00017778,2]
[359179483,1745777447216,-319.0,0.00017778,2]
[359179485,1745777447226,-319.0,0.00017778,2]
[359179487,1745777447235,-319.0,0.00017778,2]
[359179489,1745777447245,-319.0,0.00017778,2]
[359179491,1745777447255,-319.0,0.00017778,2]
[359179493,1745777447264,-319.0,0.00017778,2]
[359179495,1745777447273,-319.0,0.00017778,2]
[359179497,1745777447283,-319.0,0.00017778,2]
[359179499,1745777447292,-319.0,0.00017778,2]
[359179501,1745777447302,-319.0,0.00017778,2]
[359179503,1745777447312,-319.0,0.00017778,2]
[359179505,1745777447321,-319.0,0.00017778,2]
[359179507,1745777447330,-319.0,0.00017778,2]
[359179509,1745777447339,-319.0,0.00017778,2]
[359179511,1745777447348,-359.0,0.00017778,2]
[359179529,1745777447513,-198.68744117,0.00017778,2]
[359179531,1745777447525,-359.0,0.00017778,2]
[359179533,1745777447534,-319.0,0.00017778,2]
[359179535,1745777447548,-319.0,0.00017778,2]
[359179537,1745777447558,-359.0,0.00017778,2]
[359179539,1745777447567,-319.0,0.00017778,2]
[359179541,1745777447577,-359.0,0.00017778,2]
[359179543,1745777447586,-319.0,0.00017778,2]
[359179545,1745777447595,-359.0,0.00017778,2]
[359179547,1745777447605,-319.0,0.00017778,2]
[359179549,1745777447615,-359.0,0.00017778,2]
[359179551,1745777447625,-319.0,0.00017778,2]
[359179553,1745777447636,-359.0,0.00017778,2]
[359179555,1745777447646,-319.0,0.00017778,2]
[359179557,1745777447656,-319.0,0.00017778,2]
[359179559,1745777447668,-359.0,0.00017778,2]
[359179561,1745777447678,-359.0,0.00017778,2]
[359179563,1745777447688,-319.0,0.00017778,2]
[359179565,1745777447698,-359.0,0.00017778,2]
[359179567,1745777447708,-319.0,0.00017778,2]
[359179569,1745777447718,-359.0,0.00017778,2]
[359179571,1745777447727,-359.0,0.00017778,2]
[359179573,1745777447737,-2163.32,0.00017807,2]
[359179575,1745777447746,-400.0,0.00017807,2]
[359179577,1745777447756,-459.0971536,0.0001782,2]
[359179579,1745777447765,-18760.7845507,0.0001785,2]
[359179581,1745777447775,-1192.24321367,0.000179,2]
[359179583,1745777447784,-400.0,0.00017951,2]
[359179585,1745777447794,-500.0,0.00017973,2]
[359179587,1745777447804,-500.0,0.00017973,2]
[359179589,1745777447813,-500.0,0.00017973,2]
[359179591,1745777447822,-500.0,0.00017973,2]
[359179593,1745777447832,-500.0,0.00017973,2]
[359179595,1745777447841,-406.8437366,0.00017999,2]
[359179597,1745777447851,-17669.43513116,0.00018,2]
[359179599,1745777447860,-360.12836225,0.00018,3]
[359179601,1745777447869,-156115.17950744,0.00018,2]
[359179603,1745777447879,-228.744589,0.00018,2]
[359179604,1745777447888,-155.739423,0.00018,2]
[359179606,1745777447897,-151.0,0.00018,2]
[359179608,1745777447907,-151.0,0.00018,2]
[359179610,1745777447918,-151.0,0.00018,2]
[359179612,1745777447928,-151.0,0.00018,2]
[359179614,1745777447937,-151.0,0.00018,2]
[359179616,1745777447946,-166.859382,0.00018,2]
[359179618,1745777447956,-166.859382,0.00018,2]
[359179620,1745777447965,-151.0,0.00018,2]
[359179622,1745777447975,-522.444494,0.00018,2]
[359179624,1745777447985,-522.444494,0.00018,2]
[359179626,1745777447994,-151.0,0.00018,2]
[359179628,1745777448004,-151.0,0.00018,2]
[359179630,1745777448014,-151.0,0.00018,2]
[359179632,1745777448024,-151.0,0.00018,2]
[359179634,1745777448033,-151.0,0.00018,2]
[359179636,1745777448044,-151.0,0.00018,2]
[359179637,1745777448054,-151.0,0.00018,2]
[359179639,1745777448064,-2163.32,0.00018081,2]
[359179641,1745777448075,-400.0,0.00018081,2]
[359179643,1745777448085,-151.0,0.000182,2]
[359179645,1745777448095,-884.48433432,0.00018209,2]
[359179647,1745777448106,-400.0,0.00018225,2]
[359179649,1745777448117,-428.16130851,0.00018266,2]
[359179651,1745777448126,-2163.32,0.00018355,2]
[359179653,1745777448136,-400.0,0.00018355,2]
[359179655,1745777448147,-598.1727911,0.00018388,2]
[359179657,1745777448157,-151.0,0.000184,2]
[359179659,1745777448169,-12584.55399671,0.00018402,2]
[359179661,1745777448180,-663.18066205,0.00018467,2]
[359179663,1745777448189,-400.0,0.00018499,2]
[359179665,1745777448200,-743.17586264,0.00018525,2]
[359179667,1745777448210,-151.0,0.00018585,2]
[359179669,1745777448220,-207.4,0.00018585,2]
[359179671,1745777448230,-151.0,0.000186,2]
[359179673,1745777448239,-151.0,0.00018629,2]
[359179675,1745777448249,-2163.32,0.00018629,2]
[359179677,1745777448259,-400.0,0.00018629,2]
[359179679,1745777448268,-1192.24321342,0.00018659,2]
[359179681,1745777448279,-151.0,0.00018659,2]
[359179683,1745777448289,-152.183111,0.00018659,2]
[359179685,1745777448299,-163.82241623,0.000187,2]
[359179687,1745777448310,-390.49,0.00018731,2]
[359179689,1745777448320,-719.723,0.00018731,2]
[359179691,1745777448330,-403.0,0.00018731,2]
[359179693,1745777448341,-884.48433432,0.00018739,2]
[359179695,1745777448351,-400.0,0.00018773,2]
[359179697,1745777448363,-151.0,0.000188,2]
[359179699,1745777448373,-1754.75211396,0.00018903,2]
[359180820,1745777594725,301.768367,0.00019873,10]
[359180821,1745777595161,515.07299213,0.00025,30]
[359180823,1745777621821,199.14,0.000102,2]
[359181928,1745779832668,-1000.0,0.00016326,2]
[359181930,1745779832679,-227.98885672,0.0001724,2]
[359181932,1745779832689,-206.36872465,0.0001734,2]
[359181934,1745779832699,-300.0,0.00017632,2]
[359181936,1745779832708,-1106.99241863,0.00017632,2]
[359181939,1745779832720,-93.00758137,0.00017632,2]
[359181941,1745779832730,-421.93678167,0.00017633,2]
[359182029,1745779838574,-78.06321833,0.00017633,2]
[359182031,1745779838584,-246.11512503,0.00017633,2]
[359182033,1745779838594,-128.31209317,0.00017633,2]
[359182053,1745779841037,-371.68790683,0.00017633,2]
[359182054,1745779841046,-400.0,0.00017633,2]
[359182056,1745779841056,-400.0,0.00017633,2]
[359182057,1745779841066,-400.0,0.00017633,2]
[359182058,1745779841075,-1369.09,0.00017633,2]
[359182059,1745779841086,-160.0,0.00017664,2]
[359182060,1745779841095,-160.0,0.00017664,2]
[359182061,1745779841104,-24.37228728,0.00017664,2]
[359182395,1745781031708,-400.0,0.00017633,2]
[359182397,1745781031718,-1200.0,0.0001766,2]
[359182399,1745781031727,-300.0,0.0001766,2]
[359182401,1745781031736,-180.06418112,0.00017661,3]
[359182403,1745781031745,-8834.71756558,0.00017661,2]
[359182405,1745781031755,-165.12910815,0.00017661,2]
[359182407,1745781031764,-263.25896309,0.00017661,2]
[359182409,1745781031773,-164.4575383,0.00017661,2]
[359182411,1745781031783,-348.71723862,0.00017661,2]
[359182413,1745781031793,-579.63151272,0.00017661,2]
[359182415,1745781031802,-500.0,0.00017661,2]
[359182417,1745781031811,-500.0,0.00017661,2]
[359182418,1745781031821,-500.0,0.00017661,2]
[359182420,1745781031830,-500.0,0.00017661,2]
[359182422,1745781031840,-500.0,0.00017661,2]
[359182423,1745781031849,-333.23938876,0.00017661,2]
[359182425,1745781031858,-57437.0377718,0.00017662,2]
[359182427,1745781031869,-1374.37440975,0.00017662,2]
[359182429,1745781031880,-1279.19257051,0.00017662,2]
[359182436,1745781037929,-521.16132984,0.00017563,2]
[359182437,1745781037939,-103.04358628,0.00017662,2]
[359182438,1745781037952,-743.59819011,0.00017662,2]
[359182439,1745781038008,-278.68381207,0.00017662,2]
[359182491,1745781040261,-710.86767525,0.00017662,2]
[359182562,1745781043511,-314.80508032,0.00017662,2]
[359182586,1745781078674,1715.83360861,0.00025,30]
[359182738,1745782120686,522.72811836,0.00025,30]
[359182839,1745782245976,-400.0,0.00017661,2]
[359182840,1745782245986,-74.88623946,0.00017661,2]
[359182842,1745782324406,356.7775,0.00020862,15]
[359182999,1745783431997,-643.29661664,0.00016533,2]
[359183000,1745783432007,-180.06418112,0.00016534,3]
[359183001,1745783432018,-4417.35878279,0.00016534,2]
[359183002,1745783432027,-300.0,0.00016558,2]
[359183003,1745783432037,-438.0,0.00016558,2]
[359183004,1745783432048,-500.0,0.00016559,2]
[359183006,1745783432057,-500.0,0.00016559,2]
[359183007,1745783432066,-195.47423358,0.00016559,2]
[359183008,1745783432075,-500.0,0.0001656,2]
[359183009,1745783432085,-500.0,0.0001656,2]
[359183010,1745783432095,-400.0,0.0001656,2]
[359183011,1745783432106,-400.0,0.0001656,2]
[359183012,1745783432115,-400.0,0.0001656,2]
[359183013,1745783432125,-400.0,0.0001656,2]
[359183014,1745783432134,-500.0,0.0001656,2]
[359183015,1745783432143,-500.0,0.0001656,2]
[359183016,1745783432152,-400.0,0.0001656,2]
[359183017,1745783432162,-500.0,0.0001656,2]
[359183018,1745783432171,-400.0,0.0001656,2]
[359183019,1745783432180,-400.0,0.0001656,2]
[359183020,1745783432189,-454.38,0.0001656,2]
[359183021,1745783432199,-400.0,0.0001656,2]
[359183022,1745783432208,-500.0,0.0001656,2]
[359183024,1745783432217,-400.0,0.0001656,2]
[359183026,1745783432226,-500.0,0.0001656,2]
[359183028,1745783432235,-400.0,0.0001656,2]
[359183029,1745783432245,-400.0,0.0001656,2]
[359183030,1745783432255,-500.0,0.0001656,2]
[359183031,1745783432264,-35540.8817507,0.0001656,2]
[359183032,1745783432274,-400.0,0.0001656,2]
[359183033,1745783432284,-400.0,0.0001656,2]
[359183034,1745783432295,-400.0,0.0001656,2]
[359183035,1745783432304,-400.0,0.0001656,2]
[359183036,1745783432314,-400.0,0.0001656,2]
[359183037,1745783432324,-400.0,0.0001656,2]
[359183038,1745783432333,-500.37353793,0.0001656,2]
[359183039,1745783432343,-500.0,0.0001656,2]
[359183040,1745783432353,-12625.90249752,0.0001656,2]
[359183041,1745783432362,-500.0,0.00016633,2]
[359183042,1745783432372,-400.0,0.00016633,2]
[359183043,1745783432381,-400.0,0.00016633,2]
[359183044,1745783432390,-244.61712191,0.00016633,2]
[359183045,1745783432399,-400.0,0.00016633,2]
[359183046,1745783432409,-462.39931675,0.00016633,2]
[359183047,1745783432419,-26.34087911,0.00016633,2]
[359183048,1745783432431,-373.65912089,0.00016633,2]
[359183049,1745783432441,-500.0,0.00016633,2]
[359183050,1745783432451,-19.94087911,0.00016633,2]
[359183051,1745783432523,-232.41031856,0.00016632,2]
[359183052,1745783432532,-341.29809223,0.00016632,2]
[359183053,1745783432542,-380.05912089,0.00016633,2]
[359183054,1745783432552,-500.0,0.00016633,2]
[359183055,1745783432561,-400.0,0.00016633,2]
[359183056,1745783432571,-400.0,0.00016633,2]
[359183057,1745783432580,-210.23246832,0.00016633,2]
[359183062,1745783438097,-400.0,0.0001656,2]
[359183063,1745783438107,-400.0,0.0001656,2]
[359183064,1745783438118,-189.76753168,0.00016633,2]
[359183065,1745783438127,-377.76390037,0.00016633,2]
[359183066,1745783438140,-122.23609963,0.00016633,2]
[359183067,1745783438151,-400.0,0.00016633,2]
[359183068,1745783438160,-500.0,0.00016633,2]
[359183069,1745783438170,-400.0,0.00016633,2]
[359183070,1745783438180,-500.0,0.00016633,2]
[359183071,1745783438191,-500.0,0.00016633,2]
[359183072,1745783438202,-400.0,0.00016633,2]
[359183073,1745783438211,-400.0,0.00016633,2]
[359183074,1745783438220,-580.94,0.00016633,2]
[359183075,1745783438229,-186.58195735,0.00016633,2]
[359183076,1745783438239,-500.0,0.00016633,2]
[359183077,1745783438248,-500.0,0.00016633,2]
[359183078,1745783438257,-500.0,0.00016633,2]
[359183079,1745783438268,-500.0,0.00016633,2]
[359183080,1745783438277,-400.0,0.00016633,2]
[359183081,1745783438286,-151.0,0.00016633,2]
[359183083,1745783438296,-151.0,0.00016633,2]
[359183084,1745783438305,-151.0,0.00016633,2]
[359183085,1745783438314,-400.0,0.00016633,2]
[359183086,1745783438323,-500.0,0.00016633,2]
[359183088,1745783438332,-500.0,0.00016633,2]
[359183089,1745783438341,-500.0,0.00016633,2]